fUSD/lending_fUSD_20260531
["ID","MTS","AMOUNT","RATE_DAILY","PERIOD"]
[423496846,1780165845000,-1053.66,0.00028194,7]
[423496836,1780165845000,-619.64,0.00028033,30]
[423496839,1780165845000,-212.91,0.00028038,7]
[423496841,1780165845000,-207.00864086,0.0002808,2]
[423496835,1780165845000,-568.05,0.00028033,30]
[423496844,1780165845000,-212.92,0.0002813,7]
[423496842,1780165845000,-3589.89,0.00028082,7]
[423496853,1780165845000,-162.33164099,0.0002824,2]
[423496854,1780165845000,-177.84004506,0.0002824,2]
[423496848,1780165845000,-619.64,0.00028194,7]
[423496855,1780165845000,-202.24863394,0.0002824,2]
[423496857,1780165845000,-187.08030932,0.0002824,2]
[423496856,1780165845000,-191.41566632,0.0002824,2]
[423496849,1780165845000,-570.79,0.00028194,7]
[423496851,1780165845000,-200.0,0.000282,20]
[423496850,1780165845000,-1050.21,0.00028194,7]
[423496847,1780165845000,-568.05,0.00028194,7]
[423496843,1780165845000,-212.91,0.00028099,2]
[423496852,1780165845000,-163.28,0.000282,7]
[423496932,1780165846000,-494.984044,0.00030022,7]
[423496918,1780165846000,-1000.0,0.000297,7]
[423496927,1780165846000,-151.0,0.00030022,7]
[423496925,1780165846000,-151.0,0.00030022,7]
[423496924,1780165846000,-151.0,0.00030022,7]
[423496923,1780165846000,-151.0,0.00030022,7]
[423496922,1780165846000,-13141.32107089,0.00030019,2]
[423496919,1780165846000,-152.0,0.00029787,7]
[423496912,1780165846000,-152.0,0.00029629,30]
[423496910,1780165846000,-347.0,0.00029629,30]
[423496907,1780165846000,-152.0,0.00029629,30]
[423496920,1780165846000,-152.0,0.00029847,7]
[423496914,1780165846000,-153.0,0.00029629,30]
[423496917,1780165846000,-154.0,0.00029629,30]
[423496916,1780165846000,-379.0,0.00029629,30]
[423496908,1780165846000,-226.0,0.00029629,30]
[423496903,1780165846000,-158.0,0.00029629,30]
[423496905,1780165846000,-220.0,0.00029629,30]
[423496901,1780165846000,-184.0,0.00029628,30]
[423496929,1780165846000,-151.0,0.00030022,7]
[423496921,1780165846000,-4500.0,0.000299,10]
[423496931,1780165846000,-494.984044,0.00030022,7]
[423496952,1780165846000,-265.85775954,0.00025624,2]
[423496937,1780165846000,-3802.368531,0.00030022,7]
[423496953,1780165846000,-3568.88485763,0.00027397,10]
[423496950,1780165846000,-672.10349212,0.00027397,10]
[423496936,1780165846000,-3802.368531,0.00030022,7]
[423496948,1780165846000,-200.0,0.00013699,2]
[423496949,1780165846000,-189.8,0.00016437,2]
[423496946,1780165846000,-66.00169287,0.0002758,7]
[423496944,1780165846000,-151.0,0.00027397,2]
[423496945,1780165846000,-212.81,0.0002755,2]
[423496940,1780165846000,-606.0,0.00030075,7]
[423496943,1780165846000,-608950.70263847,0.0003013,7]
[423496951,1780165846000,-1036.65328089,0.00025624,2]
[423496941,1780165846000,-2143.82,0.00030082,120]
[423496942,1780165846000,-793.69107265,0.00030129,2]
[423496930,1780165846000,-151.0,0.00030022,7]
[423496928,1780165846000,-151.0,0.00030022,7]
[423496938,1780165846000,-3802.368531,0.00030022,7]
[423496933,1780165846000,-494.984044,0.00030022,7]
[423496926,1780165846000,-151.0,0.00030022,7]
[423496935,1780165846000,-3802.368531,0.00030022,7]
[423496939,1780165846000,-151.0,0.00030022,7]
[423496934,1780165846000,-494.984044,0.00030022,7]
[423496954,1780166453000,152.0,0.00027237,120]
[423496963,1780167032000,-157.9641081,0.00011452,2]
[423496971,1780167032000,-236.06553593,0.00011452,2]
[423496969,1780167032000,-122.58170809,0.00011452,2]
[423496968,1780167032000,-377.41829191,0.00011452,2]
[423496966,1780167032000,-493.00606159,0.00011452,2]
[423496965,1780167032000,-500.0,0.00011452,2]
[423496961,1780167032000,-274.90746646,0.00011452,2]
[423496967,1780167032000,-6.99393841,0.00011452,2]
[423496962,1780167032000,-500.0,0.00011452,2]
[423496959,1780167032000,-457.819297,0.00011452,2]
[423496960,1780167032000,-42.180703,0.00011452,2]
[423496970,1780167032000,-500.0,0.00011452,2]
[423496957,1780167032000,-340.48204018,0.00011452,2]
[423496964,1780167032000,-500.0,0.00011452,2]
[423496972,1780167032000,-263.93446407,0.00011452,2]
[423496958,1780167032000,-159.51795982,0.00011452,2]
[423496975,1780167032000,-2545.46606512,0.00011453,2]
[423496988,1780167032000,-1299.03109547,0.00013599,2]
[423496987,1780167032000,-335.31456548,0.00013599,2]
[423496984,1780167032000,-209.12966642,0.00012687,2]
[423496986,1780167032000,-146.7776101,0.00013599,2]
[423496980,1780167032000,-150.0,0.00011671,2]
[423496985,1780167032000,-255.0,0.00012745,2]
[423496983,1780167032000,-1680.0,0.00012662,2]
[423496976,1780167032000,-3372.39124788,0.00011453,2]
[423496982,1780167032000,-313.78994564,0.00012598,2]
[423496979,1780167032000,-185.61277784,0.00011571,2]
[423496977,1780167032000,-1200.0,0.00011511,2]
[423496978,1780167032000,-59.95153594,0.00011571,2]
[423496974,1780167032000,-500.0,0.00011452,2]
[423496973,1780167032000,-500.0,0.00011452,2]
[423496981,1780167032000,-2000.0,0.00011955,2]
[423496997,1780167038000,-300.72668511,0.00011452,2]
[423496998,1780167038000,-199.27331489,0.00011452,2]
[423497003,1780167038000,-4047.08486467,0.00013599,2]
[423497000,1780167038000,-401.89585611,0.00011452,2]
[423497001,1780167038000,-70.20414389,0.00011452,2]
[423496999,1780167038000,-76.73921498,0.00011452,2]
[423497002,1780167038000,-429.79585611,0.00011452,2]
[423497004,1780167038000,-11501.51412065,0.00013599,2]
[423497007,1780167040000,-812.52288854,0.00013599,2]
[423497006,1780167040000,-1075.38158507,0.00013599,2]
[423497005,1780167040000,-1502.40060945,0.00013599,2]
[423497013,1780167041000,-1273.55046578,0.00013599,2]
[423497010,1780167041000,-3692.94868556,0.00013599,2]
[423497009,1780167041000,-9340.30349176,0.00013599,2]
[423497008,1780167041000,-327.66026881,0.00013599,2]
[423497036,1780167046000,-1520.0,0.00013599,2]
[423497038,1780167059000,152.0,0.00027062,120]
[423497039,1780167368000,500.0,0.00027915,120]
[423497049,1780167998000,152.0,0.00027089,120]
[423497050,1780168144000,1000.0,0.00027914,120]
[423497084,1780168233000,-1109.2748373,0.00013052,2]
[423497078,1780168233000,-13444.11,0.00012834,2]
[423497087,1780168233000,-232.84,0.0001307,2]
[423497083,1780168233000,-389.178325,0.00013052,2]
[423497090,1780168233000,-1600.0,0.00013134,2]
[423497089,1780168233000,-165.69,0.0001307,2]
[423497079,1780168233000,-10666.20715753,0.00013,2]
[423497072,1780168233000,-150.0,0.00012404,2]
[423497074,1780168233000,-200.0,0.00012491,2]
[423497073,1780168233000,-150.0,0.00012443,2]
[423497075,1780168233000,-1000.0,0.00012531,2]
[423497077,1780168233000,-212.3053,0.00012833,2]
[423497070,1780168233000,-150.0,0.00012321,2]
[423497071,1780168233000,-155.41,0.00012342,2]
[423497068,1780168233000,-7663.88710454,0.00012258,2]
[423497069,1780168233000,-677.96289546,0.00012258,2]
[423497064,1780168233000,-300.0,0.00012255,2]
[423497060,1780168233000,-1200.0,0.00012255,2]
[423497061,1780168233000,-300.0,0.00012255,2]
[423497059,1780168233000,-601.664698,0.00012194,2]
[423497065,1780168233000,-300.0,0.00012256,2]
[423497066,1780168233000,-183.08710454,0.00012256,2]
[423497063,1780168233000,-154.02709546,0.00012255,2]
[423497062,1780168233000,-145.97290454,0.00012255,2]
[423497081,1780168233000,-222.1416408,0.00013052,2]
[423497076,1780168233000,-653.68,0.00012556,2]
[423497086,1780168233000,-1871.3184339,0.00013052,2]
[423497067,1780168233000,-489.91289546,0.00012256,2]
[423497080,1780168233000,-150.0,0.00013051,2]
[423497082,1780168233000,-569.6088108,0.00013052,2]
[423497114,1780168233000,-7994.89455115,0.00013499,2]
[423497112,1780168233000,-1680.0,0.00013481,2]
[423497111,1780168233000,-420.0,0.0001345,2]
[423497105,1780168233000,-6362.92585278,0.00013399,2]
[423497108,1780168233000,-1873.69118943,0.00013399,2]
[423497106,1780168233000,-8053.07254739,0.00013399,2]
[423497110,1780168233000,-1007.57106922,0.00013399,2]
[423497103,1780168233000,-12082.93241268,0.00013399,2]
[423497113,1780168233000,-5000.0,0.00013498,2]
[423497107,1780168233000,-781.44564402,0.00013399,2]
[423497104,1780168233000,-13939.90279654,0.00013399,2]
[423497095,1780168233000,-199.7448921,0.00013398,2]
[423497109,1780168233000,-2392.63152663,0.00013399,2]
[423497101,1780168233000,-162.12934568,0.00013398,2]
[423497085,1780168233000,-3763.7626254,0.00013052,2]
[423497088,1780168233000,-531.36,0.0001307,2]
[423497098,1780168233000,-231.8566214,0.00013398,2]
[423497091,1780168233000,-160.0,0.00013284,2]
[423497097,1780168233000,-500.0,0.00013398,2]
[423497099,1780168233000,-482.29624833,0.00013398,2]
[423497094,1780168233000,-326.5261,0.00013398,2]
[423497102,1780168233000,-2500.0,0.00013399,2]
[423497093,1780168233000,-4175.8268,0.00013383,2]
[423497092,1780168233000,-220.44,0.00013345,2]
[423497096,1780168233000,-500.0,0.00013398,2]
[423497100,1780168233000,-500.0,0.00013398,2]
[423497120,1780168238000,-657.05156622,0.00013075,2]
[423497116,1780168238000,-209.12966642,0.00012353,2]
[423497117,1780168238000,-1126.06984358,0.00013075,2]
[423497118,1780168238000,-500.0,0.00013075,2]
[423497121,1780168238000,-564346.6846603,0.00013075,2]
[423497119,1780168238000,-389.74,0.00013075,2]
[423497126,1780168238000,-1048.69259149,0.00013598,2]
[423497123,1780168238000,-500.0,0.00013499,2]
[423497124,1780168238000,-781.36924693,0.00013499,2]
[423497122,1780168238000,-293664.22784885,0.00013499,2]
[423497125,1780168238000,-150.0,0.00013597,2]
[423497127,1780168238000,-191.0,0.00013598,2]
[423497170,1780168239000,-500.0,0.00013698,2]
[423497178,1780168239000,-500.0,0.00013698,2]
[423497175,1780168239000,-500.0,0.00013698,2]
[423497176,1780168239000,-500.0,0.00013698,2]
[423497173,1780168239000,-500.0,0.00013698,2]
[423497172,1780168239000,-500.0,0.00013698,2]
[423497174,1780168239000,-500.0,0.00013698,2]
[423497177,1780168239000,-500.0,0.00013698,2]
[423497193,1780168239000,-500.0,0.00013698,2]
[423497161,1780168239000,-500.0,0.00013698,2]
[423497163,1780168239000,-500.0,0.00013698,2]
[423497168,1780168239000,-500.0,0.00013698,2]
[423497184,1780168239000,-940.79,0.00013698,2]
[423497179,1780168239000,-500.0,0.00013698,2]
[423497183,1780168239000,-500.0,0.00013698,2]
[423497182,1780168239000,-500.0,0.00013698,2]
[423497180,1780168239000,-500.0,0.00013698,2]
[423497185,1780168239000,-940.79,0.00013698,2]
[423497187,1780168239000,-940.79,0.00013698,2]
[423497186,1780168239000,-940.79,0.00013698,2]
[423497196,1780168239000,-500.0,0.00013698,2]
[423497194,1780168239000,-500.0,0.00013698,2]
[423497190,1780168239000,-940.79,0.00013698,2]
[423497188,1780168239000,-940.79,0.00013698,2]
[423497189,1780168239000,-940.79,0.00013698,2]
[423497195,1780168239000,-500.0,0.00013698,2]
[423497192,1780168239000,-500.0,0.00013698,2]
[423497181,1780168239000,-500.0,0.00013698,2]
[423497171,1780168239000,-500.0,0.00013698,2]
[423497129,1780168239000,-183.241988,0.00013599,2]
[423497159,1780168239000,-500.0,0.00013698,2]
[423497191,1780168239000,-342.52037554,0.00013698,2]
[423497128,1780168239000,-1500000.0,0.00013598,2]
[423497130,1780168239000,-500.0,0.00013698,2]
[423497135,1780168239000,-500.0,0.00013698,2]
[423497131,1780168239000,-500.0,0.00013698,2]
[423497137,1780168239000,-500.0,0.00013698,2]
[423497134,1780168239000,-500.0,0.00013698,2]
[423497132,1780168239000,-420.45070713,0.00013698,2]
[423497133,1780168239000,-500.0,0.00013698,2]
[423497139,1780168239000,-500.0,0.00013698,2]
[423497138,1780168239000,-500.0,0.00013698,2]
[423497140,1780168239000,-500.0,0.00013698,2]
[423497136,1780168239000,-500.0,0.00013698,2]
[423497156,1780168239000,-500.0,0.00013698,2]
[423497147,1780168239000,-500.0,0.00013698,2]
[423497144,1780168239000,-500.0,0.00013698,2]
[423497143,1780168239000,-500.0,0.00013698,2]
[423497142,1780168239000,-500.0,0.00013698,2]
[423497149,1780168239000,-500.0,0.00013698,2]
[423497148,1780168239000,-500.0,0.00013698,2]
[423497145,1780168239000,-500.0,0.00013698,2]
[423497150,1780168239000,-500.0,0.00013698,2]
[423497146,1780168239000,-500.0,0.00013698,2]
[423497152,1780168239000,-500.0,0.00013698,2]
[423497151,1780168239000,-387.24040857,0.00013698,2]
[423497154,1780168239000,-500.0,0.00013698,2]
[423497153,1780168239000,-500.0,0.00013698,2]
[423497165,1780168239000,-500.0,0.00013698,2]
[423497141,1780168239000,-500.0,0.00013698,2]
[423497198,1780168239000,-200.0,0.00013699,2]
[423497233,1780168239000,-1842.0,0.00013699,2]
[423497205,1780168239000,-151.0,0.00013699,2]
[423497234,1780168239000,-1842.0,0.00013699,2]
[423497236,1780168239000,-1842.0,0.00013699,2]
[423497230,1780168239000,-1842.0,0.00013699,2]
[423497232,1780168239000,-1842.0,0.00013699,2]
[423497237,1780168239000,-1842.0,0.00013699,2]
[423497239,1780168239000,-163.44,0.000137,2]
[423497240,1780168239000,-500.0,0.00013773,2]
[423497241,1780168239000,-2300.0,0.000138,5]
[423497242,1780168239000,-166.66,0.00013836,2]
[423497238,1780168239000,-1100.0,0.000137,5]
[423497246,1780168239000,-46857.58197323,0.0001399,2]
[423497244,1780168239000,-3500.0,0.000139,5]
[423497245,1780168239000,-166.66,0.00013973,2]
[423497228,1780168239000,-1842.0,0.00013699,2]
[423497243,1780168239000,-155.41,0.00013885,2]
[423497248,1780168239000,-500.0,0.00014045,2]
[423497260,1780168239000,-2351.0,0.00014829,2]
[423497250,1780168239000,-500.0,0.00014045,2]
[423497249,1780168239000,-500.0,0.00014045,2]
[423497254,1780168239000,-255.0,0.0001416,2]
[423497251,1780168239000,-500.0,0.00014045,2]
[423497259,1780168239000,-1600.0,0.00014776,2]
[423497199,1780168239000,-166.66,0.00013699,2]
[423497253,1780168239000,-166.66,0.0001411,2]
[423497255,1780168239000,-166.66,0.00014247,2]
[423497256,1780168239000,-152.28,0.00014265,2]
[423497257,1780168239000,-166.66,0.00014384,2]
[423497258,1780168239000,-587.0,0.00014761,2]
[423497247,1780168239000,-250.0,0.00014,2]
[423497235,1780168239000,-1842.0,0.00013699,2]
[423497252,1780168239000,-940.79,0.00014045,2]
[423497229,1780168239000,-1842.0,0.00013699,2]
[423497227,1780168239000,-1842.0,0.00013699,2]
[423497206,1780168239000,-151.0,0.00013699,2]
[423497197,1780168239000,-500.0,0.00013698,2]
[423497203,1780168239000,-151.0,0.00013699,2]
[423497202,1780168239000,-727.47,0.00013699,2]
[423497208,1780168239000,-151.0,0.00013699,2]
[423497207,1780168239000,-151.0,0.00013699,2]
[423497200,1780168239000,-2500.0,0.00013699,2]
[423497204,1780168239000,-151.0,0.00013699,2]
[423497209,1780168239000,-151.0,0.00013699,2]
[423497211,1780168239000,-151.0,0.00013699,2]
[423497222,1780168239000,-1842.0,0.00013699,2]
[423497217,1780168239000,-151.0,0.00013699,2]
[423497212,1780168239000,-151.0,0.00013699,2]
[423497201,1780168239000,-721.0,0.00013699,2]
[423497215,1780168239000,-151.0,0.00013699,2]
[423497210,1780168239000,-151.0,0.00013699,2]
[423497225,1780168239000,-1842.0,0.00013699,2]
[423497226,1780168239000,-1842.0,0.00013699,2]
[423497231,1780168239000,-1842.0,0.00013699,2]
[423497223,1780168239000,-1842.0,0.00013699,2]
[423497216,1780168239000,-151.0,0.00013699,2]
[423497224,1780168239000,-1842.0,0.00013699,2]
[423497219,1780168239000,-151.0,0.00013699,2]
[423497214,1780168239000,-151.0,0.00013699,2]
[423497213,1780168239000,-151.0,0.00013699,2]
[423497221,1780168239000,-151.0,0.00013699,2]
[423497220,1780168239000,-151.0,0.00013699,2]
[423497218,1780168239000,-151.0,0.00013699,2]
[423497294,1780168240000,-1252.0,0.00018089,2]
[423497292,1780168240000,-350.0,0.00018,2]
[423497293,1780168240000,-1600.0,0.0001806,2]
[423497295,1780168240000,-500.0,0.00018164,2]
[423497285,1780168240000,-500.0,0.00017507,2]
[423497296,1780168240000,-189.8,0.0001841,2]
[423497290,1780168240000,-152.28,0.00017831,2]
[423497288,1780168240000,-781.3692469,0.00017771,2]
[423497287,1780168240000,-357.31,0.00017619,2]
[423497289,1780168240000,-1152.0,0.0001778,2]
[423497297,1780168240000,-155.41,0.00018514,2]
[423497308,1780168240000,-1613.0,0.00019513,2]
[423497298,1780168240000,-222.1416408,0.00018708,2]
[423497306,1780168240000,-479.45,0.00019251,2]
[423497301,1780168240000,-400.57,0.0001872,2]
[423497307,1780168240000,-6404.91,0.00019339,2]
[423497300,1780168240000,-389.178325,0.00018708,2]
[423497303,1780168240000,-13939.90279654,0.00018796,2]
[423497302,1780168240000,-9756.26,0.0001872,2]
[423497304,1780168240000,-20471.33782947,0.00018899,2]
[423497305,1780168240000,-2000.0,0.00019205,2]
[423497291,1780168240000,-4609.0,0.00017943,2]
[423497299,1780168240000,-569.6088108,0.00018708,2]
[423497286,1780168240000,-653.68,0.00017579,2]
[423497271,1780168240000,-823.0,0.000162,2]
[423497282,1780168240000,-155.41,0.00016971,2]
[423497261,1780168240000,-150.0,0.00015,2]
[423497263,1780168240000,-155.41,0.00015428,2]
[423497262,1780168240000,-433.0,0.00015361,2]
[423497264,1780168240000,-500.0,0.00015589,2]
[423497265,1780168240000,-300.0,0.00016,2]
[423497270,1780168240000,-20471.33782947,0.00016149,2]
[423497309,1780168240000,-479.45,0.00019539,2]
[423497268,1780168240000,-169.47,0.0001614,2]
[423497266,1780168240000,-227.13037956,0.00016,2]
[423497269,1780168240000,-169.47,0.0001614,2]
[423497281,1780168240000,-215.58360558,0.00016743,2]
[423497267,1780168240000,-13939.90279654,0.00016098,2]
[423497274,1780168240000,-157.92481882,0.00016319,2]
[423497275,1780168240000,-187.71242717,0.00016319,10]
[423497273,1780168240000,-306.55994242,0.00016319,2]
[423497277,1780168240000,-1600.0,0.00016418,2]
[423497279,1780168240000,-221.97879626,0.00016438,2]
[423497283,1780168240000,-2000.0,0.00017071,2]
[423497278,1780168240000,-189.8,0.00016438,2]
[423497280,1780168240000,-736.0,0.00016666,2]
[423497276,1780168240000,-250.0,0.00016383,2]
[423497284,1780168240000,-12082.93241268,0.00017076,2]
[423497272,1780168240000,-3292.0,0.00016311,2]
[423497310,1780168240000,-1600.0,0.00019702,2]
[423497355,1780168240000,-151.0,0.00020671,2]
[423497313,1780168240000,-220.0,0.0002,2]
[423497344,1780168240000,-177.04469671,0.000206,2]
[423497339,1780168240000,-283.63974541,0.000204,2]
[423497342,1780168240000,-243.896559,0.00020532,2]
[423497345,1780168240000,-151.0,0.00020671,2]
[423497338,1780168240000,-500.0,0.00020384,2]
[423497341,1780168240000,-209.5281568,0.000204,2]
[423497340,1780168240000,-177.04469671,0.000204,2]
[423497348,1780168240000,-151.0,0.00020671,2]
[423497337,1780168240000,-189.8,0.00020381,2]
[423497347,1780168240000,-151.0,0.00020671,2]
[423497336,1780168240000,-1429.21,0.00020282,2]
[423497349,1780168240000,-151.0,0.00020671,2]
[423497351,1780168240000,-151.0,0.00020671,2]
[423497358,1780168240000,-151.0,0.00020671,2]
[423497357,1780168240000,-256.59241585,0.00020671,2]
[423497356,1780168240000,-247.43723804,0.00020671,2]
[423497353,1780168240000,-151.0,0.00020671,2]
[423497354,1780168240000,-238.60871557,0.00020671,2]
[423497359,1780168240000,-266.08633524,0.00020671,2]
[423497361,1780168240000,-275.93152964,0.00020671,2]
[423497360,1780168240000,-151.0,0.00020671,2]
[423497315,1780168240000,-347.0,0.0002,2]
[423497352,1780168240000,-230.09519341,0.00020671,2]
[423497343,1780168240000,-283.63974541,0.000206,2]
[423497350,1780168240000,-221.88543241,0.00020671,2]
[423497330,1780168240000,-7724.44,0.00020145,2]
[423497346,1780168240000,-151.0,0.00020671,2]
[423497314,1780168240000,-226.0,0.0002,2]
[423497312,1780168240000,-479.45,0.00019826,2]
[423497316,1780168240000,-152.0,0.0002,2]
[423497318,1780168240000,-154.0,0.0002,2]
[423497322,1780168240000,-400.0,0.0002,2]
[423497317,1780168240000,-379.0,0.0002,2]
[423497321,1780168240000,-184.0,0.0002,2]
[423497319,1780168240000,-742.0,0.0002,2]
[423497320,1780168240000,-858.0,0.0002,2]
[423497331,1780168240000,-10249.86,0.00020145,2]
[423497311,1780168240000,-6453.0,0.00019737,2]
[423497323,1780168240000,-479.45199776,0.00020114,2]
[423497334,1780168240000,-9999.99,0.00020145,2]
[423497326,1780168240000,-9999.99,0.00020145,2]
[423497332,1780168240000,-24999.99,0.00020145,2]
[423497335,1780168240000,-549.93789521,0.00020281,2]
[423497329,1780168240000,-4999.99,0.00020145,2]
[423497327,1780168240000,-1630.77,0.00020145,2]
[423497324,1780168240000,-999.99,0.00020145,2]
[423497325,1780168240000,-9999.99,0.00020145,2]
[423497328,1780168240000,-150.99,0.00020145,2]
[423497333,1780168240000,-499.99,0.00020145,2]
[423497408,1780168241000,-151.0,0.00021782,2]
[423497404,1780168241000,-500.0,0.00021775,2]
[423497407,1780168241000,-151.0,0.00021782,2]
[423497400,1780168241000,-2996.0,0.0002171,2]
[423497399,1780168241000,-20471.33782947,0.00021648,2]
[423497396,1780168241000,-152.28,0.00021397,2]
[423497394,1780168241000,-208.3885644,0.0002135,2]
[423497397,1780168241000,-1501.0,0.00021415,2]
[423497398,1780168241000,-13939.90279654,0.00021495,2]
[423497393,1780168241000,-2000.0,0.00021339,2]
[423497403,1780168241000,-500.0,0.00021775,2]
[423497395,1780168241000,-6477.09,0.0002137,2]
[423497410,1780168241000,-500.0,0.00021784,2]
[423497417,1780168241000,-500.0,0.00021785,2]
[423497401,1780168241000,-2236.95670847,0.00021767,2]
[423497406,1780168241000,-151.0,0.00021782,2]
[423497405,1780168241000,-500.0,0.00021775,2]
[423497402,1780168241000,-500.0,0.00021775,2]
[423497412,1780168241000,-940.79,0.00021784,2]
[423497422,1780168241000,-500.0,0.00021785,2]
[423497411,1780168241000,-500.0,0.00021784,2]
[423497421,1780168241000,-500.0,0.00021785,2]
[423497413,1780168241000,-500.0,0.00021785,2]
[423497414,1780168241000,-501.41833734,0.00021785,2]
[423497415,1780168241000,-500.0,0.00021785,2]
[423497390,1780168241000,-184.0,0.00021,2]
[423497409,1780168241000,-500.0,0.00021784,2]
[423497392,1780168241000,-2157.14243826,0.00021219,2]
[423497367,1780168241000,-2080.17592889,0.00020671,2]
[423497391,1780168241000,-283.63974541,0.000212,2]
[423497364,1780168241000,-296.7282131,0.00020671,2]
[423497363,1780168241000,-151.0,0.00020671,2]
[423497362,1780168241000,-286.14099624,0.00020671,2]
[423497373,1780168241000,-151.0,0.00020671,2]
[423497416,1780168241000,-500.0,0.00021785,2]
[423497366,1780168241000,-307.70715698,0.00020671,2]
[423497376,1780168241000,-151.0,0.00020671,2]
[423497370,1780168241000,-151.0,0.00020671,2]
[423497368,1780168241000,-319.09232179,0.00020671,2]
[423497371,1780168241000,-151.0,0.00020671,2]
[423497365,1780168241000,-151.0,0.00020671,2]
[423497375,1780168241000,-151.0,0.00020671,2]
[423497369,1780168241000,-151.0,0.00020671,2]
[423497374,1780168241000,-151.0,0.00020671,2]
[423497372,1780168241000,-151.0,0.00020671,2]
[423497381,1780168241000,-283.63974541,0.00021,2]
[423497387,1780168241000,-379.0,0.00021,2]
[423497377,1780168241000,-12082.93241268,0.00020753,2]
[423497382,1780168241000,-177.04469671,0.00021,2]
[423497384,1780168241000,-226.0,0.00021,2]
[423497386,1780168241000,-152.0,0.00021,2]
[423497380,1780168241000,-267.73,0.00020951,7]
[423497379,1780168241000,-177.04469671,0.000208,2]
[423497385,1780168241000,-347.0,0.00021,2]
[423497383,1780168241000,-220.0,0.00021,2]
[423497378,1780168241000,-283.63974541,0.000208,2]
[423497389,1780168241000,-742.0,0.00021,2]
[423497388,1780168241000,-154.0,0.00021,2]
[423497418,1780168241000,-500.0,0.00021785,2]
[423497419,1780168241000,-338.87344356,0.00021785,2]
[423497425,1780168241000,-500.0,0.00021785,2]
[423497464,1780168241000,-500.0,0.00021785,2]
[423497460,1780168241000,-500.0,0.00021785,2]
[423497455,1780168241000,-500.0,0.00021785,2]
[423497457,1780168241000,-500.0,0.00021785,2]
[423497461,1780168241000,-500.0,0.00021785,2]
[423497474,1780168241000,-500.0,0.00021785,2]
[423497466,1780168241000,-500.0,0.00021785,2]
[423497475,1780168241000,-500.0,0.00021785,2]
[423497476,1780168241000,-500.0,0.00021785,2]
[423497465,1780168241000,-500.0,0.00021785,2]
[423497468,1780168241000,-500.0,0.00021785,2]
[423497470,1780168241000,-500.0,0.00021785,2]
[423497469,1780168241000,-500.0,0.00021785,2]
[423497467,1780168241000,-500.0,0.00021785,2]
[423497471,1780168241000,-500.0,0.00021785,2]
[423497472,1780168241000,-500.0,0.00021785,2]
[423497473,1780168241000,-416.10004967,0.00021785,2]
[423497477,1780168241000,-500.0,0.00021785,2]
[423497479,1780168241000,-500.0,0.00021785,2]
[423497480,1780168241000,-500.0,0.00021785,2]
[423497478,1780168241000,-500.0,0.00021785,2]
[423497482,1780168241000,-500.0,0.00021785,2]
[423497486,1780168241000,-500.0,0.00021785,2]
[423497483,1780168241000,-156.8613884,0.00021785,2]
[423497485,1780168241000,-500.0,0.00021785,2]
[423497420,1780168241000,-500.0,0.00021785,2]
[423497484,1780168241000,-500.0,0.00021785,2]
[423497463,1780168241000,-500.0,0.00021785,2]
[423497452,1780168241000,-500.0,0.00021785,2]